{"text_format":"1","workbook":"xlsx","n_sheets":3,"sheets":["VBA-ohjeet","Tuotteet","Tarjous"],"not_rendered":{"charts":0,"images":0,"macros":1,"external_links":0,"defined_names":1,"comments":0,"pivot_tables":0},"unopened":[],"bounds":{"document_bytes":16777216,"sheet_cells":100000,"rows_first":2000,"rows_last":500,"rows_between":2000,"halvings":0,"cell_chars":16384,"cell_head_chars":4096},"cells_cut":0,"cells_raw":0,"read":"whole","date_system":"1900"}

{"sheet":"VBA-ohjeet","index":0,"n_rows":25,"n_cols":5,"rows_kept":25,"cut":false,"hidden":false,"merged":[]}
[]
[null,"VBA-editorin avaaminen"]
[null,"Pikanäppäin Alt+F11"]
[null,"Tai valintanauhalle \"Kehitystyökalut näkyviin asetuksista\""]
[null,"Tiedosto -> Asetukset -> Valintanauhan mukauttaminen-> Raksita kehitystyökalut"]
[null,"Kehitystyökalut -> Visual Basic"]
[]
[null,"VBA-hienosäädöt"]
[null,"Tools -> Options -> Tab width:"]
[null,"Muuta arvosta 4 arvoon 2"]
[]
[]
[null,"Yleisimmät muuttujatyypit VBA:ssa"]
[null,"Tyyppi","Arvot","Yksi nimeämistapa","Lisätiedot"]
[null,"Boolean","True;False","bExample"]
[null,"Integer","..-2;-1;0;1;2..","intExample","Kokonaisluvut n. 10 000 –100 000 asti"]
[null,"Long","..-2;-1;0;1;2..","lngExample","Kokonaisluvut, kun lukujen määrä suuri"]
[null,"Double","0,1;-0,12;12,2","dblExample","Desimaaliluvut"]
[null,"String","Tekstit","strExample"]
[null,"Variant","Tekstit;0;0,355","varExample","Joustava, ei tulisi käyttää ellei pakko"]
[null,"Variant","erilaiset taulut","arrExample","Tauluissa kannattaa käyttää variantia, mutta nimetä arr-alkuisena"]
[null,"Range","Solu(t)","rngExample","Objekti, jolla erilaisia ominaisuuksia (esim. fonttikoko, värjäys, …)"]
[null,"Listobject","Taulukko","tblExample","Excelin taulukko"]
[null,"Worksheet","Välilehti","wsExample","Excelin välilehti, jolla erilaisia ominaisuuksia"]
[null,"Workbook","Työkirja","wbExample","Excelin työkirja"]

{"sheet":"Tuotteet","index":1,"n_rows":9,"n_cols":5,"rows_kept":9,"cut":false,"hidden":false,"merged":[]}
[]
[null,"Tuotenro","Tuotteen nimi","Hinta","Valitse määrä"]
[null,"00001","Paperi A4 50 kpl",4,5]
[null,"00002","Kynä",1,1]
[null,"00003","Laskin",45,2]
[null,"00004","Pyyhekumi",1.2]
[null,"00005","Muistivihko",4,2]
[null,"00006","Post it -laput",2.5]
[null,"00007","Kirjekuori",0.8,1]

{"sheet":"Tarjous","index":2,"n_rows":24,"n_cols":10,"rows_kept":24,"cut":false,"hidden":false,"merged":[[2,2,2,9]]}
[]
[]
[null,null,"Tarjous"]
[]
[]
[]
[null,null,"Tarjottavat tuotteet:"]
[null,null,"Rivi","Tuotenro","Tuotteen nimi","á-hinta","kpl","Yhteensä","Alennus","Lopullinen hinta"]
[null,null,1,null,null,null,null,{"$f":"IF(F9=\"\",\"\",F9*G9)","v":""},null,{"$f":"IF(H9=\"\",\"\",H9*(1-I9))","v":""}]
[null,null,2,null,null,null,null,{"$f":"IF(F10=\"\",\"\",F10*G10)","v":""},null,""]
[null,null,3,null,null,null,null,"",null,""]
[null,null,4,null,null,null,null,"",null,""]
[null,null,5,null,null,null,null,"",null,""]
[null,null,6,null,null,null,null,"",null,""]
[null,null,7,null,null,null,null,"",null,""]
[null,null,8,null,null,null,null,"",null,""]
[null,null,9,null,null,null,null,"",null,""]
[null,null,10,null,null,null,null,"",null,""]
[null,null,11,null,null,null,null,"",null,""]
[null,null,12,null,null,null,null,"",null,""]
[null,null,13,null,null,null,null,"",null,""]
[null,null,14,null,null,null,null,"",null,""]
[null,null,15,null,null,null,null,"",null,""]
[null,null,null,null,null,null,null,null,"Yhteensä",{"$f":"SUM($J$9:$J$23)","v":0}]